{"text_format":"3","workbook":"xlsx","n_sheets":2,"sheets":["Απογραφή εξοπλισμού","Ρυθμίσεις "],"not_rendered":{"defined_names":4},"read":"whole","date_system":"1900"}

{"sheet":"Απογραφή εξοπλισμού","index":0,"n_rows":35,"n_cols":6,"rows_kept":35,"merged":[[0,1,2,2],[0,4,0,5]]}
[]
[{"$nulls":4},"Επισήμανση των στοιχείων που είναι παλαιότερα από:"]
[{"$nulls":4},4]
[]
[null,"ΑΝΑΓΝΩΡΙΣΤΙΚΟ ΕΞΟΠΛΙΣΜΟΥ","ΟΝΟΜΑ ΣΤΟΙΧΕΙΟΥ","ΕΚΧΩΡΗΘΗΚΕ ΣΕ","ΗΜΕΡΟΜΗΝΙΑ ΕΚΔΟΣΗΣ","ΠΑΛΑΙΟΤΗΤΑ ΣΤΟΙΧΕΙΟΥ"]
[null,"ΣΤΟΙΧΕΙΟ_0001","Καρέκλα","Υπάλληλος 1",{"$f":"TODAY()-25","v":"2012-11-25"},{"$f":"IF(tblEquipmentInventory[[#This Row],[ΗΜΕΡΟΜΗΝΙΑ ΕΚΔΟΣΗΣ]]<>\"\",TODAY()-tblEquipmentInventory[[#This Row],[ΗΜΕΡΟΜΗΝΙΑ ΕΚΔΟΣΗΣ]],\"\")","v":{"v":25,"d":"25 ημέρες"}}]
[null,"ΣΤΟΙΧΕΙΟ_0002","Εκτυπωτής λέιζερ","Υπάλληλος 2",{"$f":"TODAY()-479","v":"2011-08-29"},{"$f":"IF(tblEquipmentInventory[[#This Row],[ΗΜΕΡΟΜΗΝΙΑ ΕΚΔΟΣΗΣ]]<>\"\",TODAY()-tblEquipmentInventory[[#This Row],[ΗΜΕΡΟΜΗΝΙΑ ΕΚΔΟΣΗΣ]],\"\")","v":{"v":479,"d":"479 ημέρες"}}]
[null,"ΣΤΟΙΧΕΙΟ_0003","Σαρωτής","Υπάλληλος 3",{"$f":"TODAY()-177","v":"2012-06-26"},{"$f":"IF(tblEquipmentInventory[[#This Row],[ΗΜΕΡΟΜΗΝΙΑ ΕΚΔΟΣΗΣ]]<>\"\",TODAY()-tblEquipmentInventory[[#This Row],[ΗΜΕΡΟΜΗΝΙΑ ΕΚΔΟΣΗΣ]],\"\")","v":{"v":177,"d":"177 ημέρες"}}]
[null,"ΣΤΟΙΧΕΙΟ_0004","Εκτυπωτής λέιζερ","Υπάλληλος 7",{"$f":"TODAY()-18","v":"2012-12-02"},{"$f":"IF(tblEquipmentInventory[[#This Row],[ΗΜΕΡΟΜΗΝΙΑ ΕΚΔΟΣΗΣ]]<>\"\",TODAY()-tblEquipmentInventory[[#This Row],[ΗΜΕΡΟΜΗΝΙΑ ΕΚΔΟΣΗΣ]],\"\")","v":{"v":18,"d":"18 ημέρες"}}]
[null,"ΣΤΟΙΧΕΙΟ_0005","Καφετιέρα","Υπάλληλος 20",{"$f":"TODAY()-227","v":"2012-05-07"},{"$f":"IF(tblEquipmentInventory[[#This Row],[ΗΜΕΡΟΜΗΝΙΑ ΕΚΔΟΣΗΣ]]<>\"\",TODAY()-tblEquipmentInventory[[#This Row],[ΗΜΕΡΟΜΗΝΙΑ ΕΚΔΟΣΗΣ]],\"\")","v":{"v":227,"d":"227 ημέρες"}}]
[null,"ΣΤΟΙΧΕΙΟ_0006","Σαρωτής","Υπάλληλος 14",{"$f":"TODAY()-50","v":"2012-10-31"},{"$f":"IF(tblEquipmentInventory[[#This Row],[ΗΜΕΡΟΜΗΝΙΑ ΕΚΔΟΣΗΣ]]<>\"\",TODAY()-tblEquipmentInventory[[#This Row],[ΗΜΕΡΟΜΗΝΙΑ ΕΚΔΟΣΗΣ]],\"\")","v":{"v":50,"d":"50 ημέρες"}}]
[null,"ΣΤΟΙΧΕΙΟ_0007","Τραπέζι","Υπάλληλος 4",{"$f":"TODAY()-120","v":"2012-08-22"},{"$f":"IF(tblEquipmentInventory[[#This Row],[ΗΜΕΡΟΜΗΝΙΑ ΕΚΔΟΣΗΣ]]<>\"\",TODAY()-tblEquipmentInventory[[#This Row],[ΗΜΕΡΟΜΗΝΙΑ ΕΚΔΟΣΗΣ]],\"\")","v":{"v":120,"d":"120 ημέρες"}}]
[null,"ΣΤΟΙΧΕΙΟ_0008","Φωτοαντιγραφικό","Υπάλληλος 12",{"$f":"TODAY()-499","v":"2011-08-09"},{"$f":"IF(tblEquipmentInventory[[#This Row],[ΗΜΕΡΟΜΗΝΙΑ ΕΚΔΟΣΗΣ]]<>\"\",TODAY()-tblEquipmentInventory[[#This Row],[ΗΜΕΡΟΜΗΝΙΑ ΕΚΔΟΣΗΣ]],\"\")","v":{"v":499,"d":"499 ημέρες"}}]
[null,"ΣΤΟΙΧΕΙΟ_0009","Επιπλέον οθόνη","Υπάλληλος 8",{"$f":"TODAY()-30","v":"2012-11-20"},{"$f":"IF(tblEquipmentInventory[[#This Row],[ΗΜΕΡΟΜΗΝΙΑ ΕΚΔΟΣΗΣ]]<>\"\",TODAY()-tblEquipmentInventory[[#This Row],[ΗΜΕΡΟΜΗΝΙΑ ΕΚΔΟΣΗΣ]],\"\")","v":{"v":30,"d":"30 ημέρες"}}]
[null,"ΣΤΟΙΧΕΙΟ_0010","Πίνακας","Υπάλληλος 19",{"$f":"TODAY()-50","v":"2012-10-31"},{"$f":"IF(tblEquipmentInventory[[#This Row],[ΗΜΕΡΟΜΗΝΙΑ ΕΚΔΟΣΗΣ]]<>\"\",TODAY()-tblEquipmentInventory[[#This Row],[ΗΜΕΡΟΜΗΝΙΑ ΕΚΔΟΣΗΣ]],\"\")","v":{"v":50,"d":"50 ημέρες"}}]
[null,"ΣΤΟΙΧΕΙΟ_0011","Φωτοαντιγραφικό","Υπάλληλος 12",{"$f":"TODAY()-450","v":"2011-09-27"},{"$f":"IF(tblEquipmentInventory[[#This Row],[ΗΜΕΡΟΜΗΝΙΑ ΕΚΔΟΣΗΣ]]<>\"\",TODAY()-tblEquipmentInventory[[#This Row],[ΗΜΕΡΟΜΗΝΙΑ ΕΚΔΟΣΗΣ]],\"\")","v":{"v":450,"d":"450 ημέρες"}}]
[null,"ΣΤΟΙΧΕΙΟ_0012","Επιστολόχαρτα","Υπάλληλος 18",{"$f":"TODAY()-420","v":"2011-10-27"},{"$f":"IF(tblEquipmentInventory[[#This Row],[ΗΜΕΡΟΜΗΝΙΑ ΕΚΔΟΣΗΣ]]<>\"\",TODAY()-tblEquipmentInventory[[#This Row],[ΗΜΕΡΟΜΗΝΙΑ ΕΚΔΟΣΗΣ]],\"\")","v":{"v":420,"d":"420 ημέρες"}}]
[null,"ΣΤΟΙΧΕΙΟ_0013","Επιπλέον οθόνη","Υπάλληλος 8",{"$f":"TODAY()-250","v":"2012-04-14"},{"$f":"IF(tblEquipmentInventory[[#This Row],[ΗΜΕΡΟΜΗΝΙΑ ΕΚΔΟΣΗΣ]]<>\"\",TODAY()-tblEquipmentInventory[[#This Row],[ΗΜΕΡΟΜΗΝΙΑ ΕΚΔΟΣΗΣ]],\"\")","v":{"v":250,"d":"250 ημέρες"}}]
[null,"ΣΤΟΙΧΕΙΟ_0014","Καφετιέρα","Υπάλληλος 9",{"$f":"TODAY()-45","v":"2012-11-05"},{"$f":"IF(tblEquipmentInventory[[#This Row],[ΗΜΕΡΟΜΗΝΙΑ ΕΚΔΟΣΗΣ]]<>\"\",TODAY()-tblEquipmentInventory[[#This Row],[ΗΜΕΡΟΜΗΝΙΑ ΕΚΔΟΣΗΣ]],\"\")","v":{"v":45,"d":"45 ημέρες"}}]
[null,"ΣΤΟΙΧΕΙΟ_0015","Επιστολόχαρτα","Υπάλληλος 13",{"$f":"TODAY()-502","v":"2011-08-06"},{"$f":"IF(tblEquipmentInventory[[#This Row],[ΗΜΕΡΟΜΗΝΙΑ ΕΚΔΟΣΗΣ]]<>\"\",TODAY()-tblEquipmentInventory[[#This Row],[ΗΜΕΡΟΜΗΝΙΑ ΕΚΔΟΣΗΣ]],\"\")","v":{"v":502,"d":"502 ημέρες"}}]
[null,"ΣΤΟΙΧΕΙΟ_0016","Σαρωτής","Υπάλληλος 1",{"$f":"TODAY()-350","v":"2012-01-05"},{"$f":"IF(tblEquipmentInventory[[#This Row],[ΗΜΕΡΟΜΗΝΙΑ ΕΚΔΟΣΗΣ]]<>\"\",TODAY()-tblEquipmentInventory[[#This Row],[ΗΜΕΡΟΜΗΝΙΑ ΕΚΔΟΣΗΣ]],\"\")","v":{"v":350,"d":"350 ημέρες"}}]
[null,"ΣΤΟΙΧΕΙΟ_0017","Φωτοαντιγραφικό","Υπάλληλος 19",{"$f":"TODAY()-125","v":"2012-08-17"},{"$f":"IF(tblEquipmentInventory[[#This Row],[ΗΜΕΡΟΜΗΝΙΑ ΕΚΔΟΣΗΣ]]<>\"\",TODAY()-tblEquipmentInventory[[#This Row],[ΗΜΕΡΟΜΗΝΙΑ ΕΚΔΟΣΗΣ]],\"\")","v":{"v":125,"d":"125 ημέρες"}}]
[null,"ΣΤΟΙΧΕΙΟ_0018","Πίνακας","Υπάλληλος 15",{"$f":"TODAY()-90","v":"2012-09-21"},{"$f":"IF(tblEquipmentInventory[[#This Row],[ΗΜΕΡΟΜΗΝΙΑ ΕΚΔΟΣΗΣ]]<>\"\",TODAY()-tblEquipmentInventory[[#This Row],[ΗΜΕΡΟΜΗΝΙΑ ΕΚΔΟΣΗΣ]],\"\")","v":{"v":90,"d":"90 ημέρες"}}]
[null,"ΣΤΟΙΧΕΙΟ_0019","Καρέκλα","Υπάλληλος 16",{"$f":"TODAY()-730","v":"2010-12-21"},{"$f":"IF(tblEquipmentInventory[[#This Row],[ΗΜΕΡΟΜΗΝΙΑ ΕΚΔΟΣΗΣ]]<>\"\",TODAY()-tblEquipmentInventory[[#This Row],[ΗΜΕΡΟΜΗΝΙΑ ΕΚΔΟΣΗΣ]],\"\")","v":{"v":730,"d":"730 ημέρες"}}]
[null,"ΣΤΟΙΧΕΙΟ_0020","Ξεσκονόπανο (1 σετ)","Υπάλληλος 3",{"$f":"TODAY()-540","v":"2011-06-29"},{"$f":"IF(tblEquipmentInventory[[#This Row],[ΗΜΕΡΟΜΗΝΙΑ ΕΚΔΟΣΗΣ]]<>\"\",TODAY()-tblEquipmentInventory[[#This Row],[ΗΜΕΡΟΜΗΝΙΑ ΕΚΔΟΣΗΣ]],\"\")","v":{"v":540,"d":"540 ημέρες"}}]
[null,"ΣΤΟΙΧΕΙΟ_0021","Εκτυπωτής λέιζερ","Υπάλληλος 7",{"$f":"TODAY()-18","v":"2012-12-02"},{"$f":"IF(tblEquipmentInventory[[#This Row],[ΗΜΕΡΟΜΗΝΙΑ ΕΚΔΟΣΗΣ]]<>\"\",TODAY()-tblEquipmentInventory[[#This Row],[ΗΜΕΡΟΜΗΝΙΑ ΕΚΔΟΣΗΣ]],\"\")","v":{"v":18,"d":"18 ημέρες"}}]
[null,"ΣΤΟΙΧΕΙΟ_0022","Φορητός υπολογιστής","Υπάλληλος 8",{"$f":"TODAY()-283","v":"2012-03-12"},{"$f":"IF(tblEquipmentInventory[[#This Row],[ΗΜΕΡΟΜΗΝΙΑ ΕΚΔΟΣΗΣ]]<>\"\",TODAY()-tblEquipmentInventory[[#This Row],[ΗΜΕΡΟΜΗΝΙΑ ΕΚΔΟΣΗΣ]],\"\")","v":{"v":283,"d":"283 ημέρες"}}]
[null,"ΣΤΟΙΧΕΙΟ_0023","Επιστολόχαρτα","Υπάλληλος 9",{"$f":"TODAY()-479","v":"2011-08-29"},{"$f":"IF(tblEquipmentInventory[[#This Row],[ΗΜΕΡΟΜΗΝΙΑ ΕΚΔΟΣΗΣ]]<>\"\",TODAY()-tblEquipmentInventory[[#This Row],[ΗΜΕΡΟΜΗΝΙΑ ΕΚΔΟΣΗΣ]],\"\")","v":{"v":479,"d":"479 ημέρες"}}]
[null,"ΣΤΟΙΧΕΙΟ_0024","Εκτυπωτής λέιζερ","Υπάλληλος 19",{"$f":"TODAY()-355","v":"2011-12-31"},{"$f":"IF(tblEquipmentInventory[[#This Row],[ΗΜΕΡΟΜΗΝΙΑ ΕΚΔΟΣΗΣ]]<>\"\",TODAY()-tblEquipmentInventory[[#This Row],[ΗΜΕΡΟΜΗΝΙΑ ΕΚΔΟΣΗΣ]],\"\")","v":{"v":355,"d":"355 ημέρες"}}]
[null,"ΣΤΟΙΧΕΙΟ_0025","Τραπέζι","Υπάλληλος 7",{"$f":"TODAY()-28","v":"2012-11-22"},{"$f":"IF(tblEquipmentInventory[[#This Row],[ΗΜΕΡΟΜΗΝΙΑ ΕΚΔΟΣΗΣ]]<>\"\",TODAY()-tblEquipmentInventory[[#This Row],[ΗΜΕΡΟΜΗΝΙΑ ΕΚΔΟΣΗΣ]],\"\")","v":{"v":28,"d":"28 ημέρες"}}]
[null,"ΣΤΟΙΧΕΙΟ_0026","Πίνακας","Υπάλληλος 8",{"$f":"TODAY()-28","v":"2012-11-22"},{"$f":"IF(tblEquipmentInventory[[#This Row],[ΗΜΕΡΟΜΗΝΙΑ ΕΚΔΟΣΗΣ]]<>\"\",TODAY()-tblEquipmentInventory[[#This Row],[ΗΜΕΡΟΜΗΝΙΑ ΕΚΔΟΣΗΣ]],\"\")","v":{"v":28,"d":"28 ημέρες"}}]
[null,"ΣΤΟΙΧΕΙΟ_0027","Φορητός υπολογιστής","Υπάλληλος 19",{"$f":"TODAY()-736","v":"2010-12-15"},{"$f":"IF(tblEquipmentInventory[[#This Row],[ΗΜΕΡΟΜΗΝΙΑ ΕΚΔΟΣΗΣ]]<>\"\",TODAY()-tblEquipmentInventory[[#This Row],[ΗΜΕΡΟΜΗΝΙΑ ΕΚΔΟΣΗΣ]],\"\")","v":{"v":736,"d":"736 ημέρες"}}]
[null,"ΣΤΟΙΧΕΙΟ_0028","Τραπέζι","Υπάλληλος 12",{"$f":"TODAY()-68","v":"2012-10-13"},{"$f":"IF(tblEquipmentInventory[[#This Row],[ΗΜΕΡΟΜΗΝΙΑ ΕΚΔΟΣΗΣ]]<>\"\",TODAY()-tblEquipmentInventory[[#This Row],[ΗΜΕΡΟΜΗΝΙΑ ΕΚΔΟΣΗΣ]],\"\")","v":{"v":68,"d":"68 ημέρες"}}]
[null,"ΣΤΟΙΧΕΙΟ_0029","Σαρωτής","Υπάλληλος 14",{"$f":"TODAY()-67","v":"2012-10-14"},{"$f":"IF(tblEquipmentInventory[[#This Row],[ΗΜΕΡΟΜΗΝΙΑ ΕΚΔΟΣΗΣ]]<>\"\",TODAY()-tblEquipmentInventory[[#This Row],[ΗΜΕΡΟΜΗΝΙΑ ΕΚΔΟΣΗΣ]],\"\")","v":{"v":67,"d":"67 ημέρες"}}]
[null,"ΣΤΟΙΧΕΙΟ_0030","Καφετιέρα","Υπάλληλος 3",{"$f":"TODAY()-149","v":"2012-07-24"},{"$f":"IF(tblEquipmentInventory[[#This Row],[ΗΜΕΡΟΜΗΝΙΑ ΕΚΔΟΣΗΣ]]<>\"\",TODAY()-tblEquipmentInventory[[#This Row],[ΗΜΕΡΟΜΗΝΙΑ ΕΚΔΟΣΗΣ]],\"\")","v":{"v":149,"d":"149 ημέρες"}}]

{"sheet":"Ρυθμίσεις ","index":1,"n_rows":23,"n_cols":4,"rows_kept":23}
[]
[]
[null,"ΥΠΑΛΛΗΛΟΙ",null,"ΣΤΟΙΧΕΙΑ"]
[null,"Υπάλληλος 1",null,"Καρέκλα"]
[null,"Υπάλληλος 2",null,"Καφετιέρα"]
[null,"Υπάλληλος 3",null,"Φωτοαντιγραφικό"]
[null,"Υπάλληλος 4",null,"Υπολογιστής γραφείου"]
[null,"Υπάλληλος 5",null,"Ξεσκονόπανο (1 σετ)"]
[null,"Υπάλληλος 6",null,"Επιπλέον οθόνη"]
[null,"Υπάλληλος 7",null,"Εκτυπωτής ψεκασμού"]
[null,"Υπάλληλος 8",null,"Φορητός υπολογιστής"]
[null,"Υπάλληλος 9",null,"Εκτυπωτής λέιζερ"]
[null,"Υπάλληλος 10",null,"Μαρκαδόροι (συσκευασία των 3)"]
[null,"Υπάλληλος 11",null,"Σαρωτής"]
[null,"Υπάλληλος 12",null,"Επιστολόχαρτα"]
[null,"Υπάλληλος 13",null,"Τραπέζι"]
[null,"Υπάλληλος 14",null,"Μονάδα δίσκου USB"]
[null,"Υπάλληλος 15",null,"Πίνακας"]
[null,"Υπάλληλος 16"]
[null,"Υπάλληλος 17"]
[null,"Υπάλληλος 18"]
[null,"Υπάλληλος 19"]
[null,"Υπάλληλος 20"]